Cogmind - Beta 12 @@@ ROGUE MODE // 2023.06.07 @ 23:58:16 Player: LustLizard Result: Self-destructed Performance ------------- Evolutions (6) 3000 Regions Visited (13) 2600 Robots Destroyed (81) 405 Value Destroyed (2747) 2747 Prototype IDs (29) 580 Alien Tech Used (0) 0 Bonus (1288) 1288 TOTAL SCORE: 10620 Bonus ------- Follower Combat Kills 14 Entered DSFs 1000 Aligned with FarCom 300 Friendly Fire -26 Cogmind --------- Core Integrity 1077/1150 Matter 148/300 Energy 0/100 System Corruption 0% Temperature Cool (0) Movement Hovering (102) Ox1 Location -4/DSF Parts ------- > --- POWER (2) -------- (None) > --- PROPULSION (6) --- Combat Airjet Linear Gravjet Linear Gravjet Linear Gravjet Linear Gravjet Cooled Gravmag System > --- UTILITY (9) ------ Advanced Heat Sink Large Storage Unit Enhanced Optical Array Improved Signal Interpreter Advanced Targeting Computer Energy Filter Hardlight Generator > --- WEAPON (2) ------- Plasma Rifle Heavy Ion Cannon > --- INVENTORY (15) --- Combat Gravmag System Cooled Nuclear Pulse Thruster Improved Heat Sink Improved Coolant Injector Medium Storage Unit Energy Well (350) Improved Shield Generator Latent Energy Streamer Compact Ion Cannon Advanced Assault Cannon Heavy Proton Missile Launcher Heavy Proton Missile Launcher Heavy Missile Launcher Datajack Chainsword Peak State ------------ > --- POWER ------------ Light Angular Momentum Engine > --- PROPULSION ------- Combat Airjet Linear Gravjet Linear Gravjet Linear Gravjet Linear Gravjet Cooled Gravmag System > --- UTILITY ---------- Advanced Heat Sink Large Storage Unit Enhanced Optical Array Improved Signal Interpreter Advanced Targeting Computer Energy Filter Hardlight Generator > --- WEAPON ----------- Plasma Rifle Heavy Ion Cannon > --- INVENTORY -------- Linear Gravjet Cooled Nuclear Pulse Thruster Improved Heat Sink Improved Coolant Injector Medium Storage Unit Energy Well Improved Shield Generator Latent Energy Streamer Compact Ion Cannon Advanced Assault Cannon Heavy Proton Missile Launcher Heavy Proton Missile Launcher Heavy Missile Launcher Datajack Chainsword [Rating: 81] Favorites ----------- Power Improved Deuterium Engine Engine Improved Deuterium Engine Power Core Micro Nuclear Core Propulsion Wheel Treads Light Treads Leg Improved Carbon-fiber Leg Wheel Wheel Hover Unit Linear Gravjet Utility Large Storage Unit Device Improved Heat Sink Storage Large Storage Unit Processor Enhanced Optical Array Protection Light Armor Plating Weapon Pulse Rifle Energy Gun Pulse Rifle Energy Cannon Heavy Ion Cannon Ballistic Gun Assault Rifle Ballistic Cannon Light Cannon Build | -11 -10 -10 -10 -9 -8 -7 -7 -7 -6 -6 -5 -4 -4 ------- Run | Jun Mat Min Exi Min Mat Fac Low Low Fac DSF Fac Fac DSF Slots Evolved 12 | . . . . . 4 2 . . 2 . 2 2 . Power 1 | . . . . . . . . . 1 . . . . Propulsion 4 | . . . . . 2 . . . 1 . 1 . . Utility 7 | . . . . . 2 2 . . . . 1 2 . Weapon . | . . . . . . . . . . . . . . Parts Attached 115 | 6 5 3 . 5 17 43 11 1 1 15 8 . . Power 17 | 1 2 1 . 1 3 4 1 1 1 2 . . . Engine 16 | 1 2 1 . 1 3 4 1 1 . 2 . . . Core 1 | . . . . . . . . . 1 . . . . Reactor . | . . . . . . . . . . . . . . Propulsion 40 | 2 . 1 . 1 5 18 3 . . 8 2 . . Treads 12 | 1 . . . 1 3 7 . . . . . . . Leg 13 | . . . . . . 8 3 . . 2 . . . Wheel 7 | 1 . 1 . . 2 3 . . . . . . . Hover 8 | . . . . . . . . . . 6 2 . . Flight . | . . . . . . . . . . . . . . Utility 37 | 1 2 1 . 1 5 14 5 . . 4 4 . . Device 21 | . . 1 . 1 3 10 2 . . 2 2 . . Storage 4 | 1 1 . . . 1 1 . . . . . . . Processor 3 | . . . . . . . . . . 1 2 . . Hackware . | . . . . . . . . . . . . . . Protection 9 | . 1 . . . 1 3 3 . . 1 . . . Artifact . | . . . . . . . . . . . . . . Weapon 21 | 2 1 . . 2 4 7 2 . . 1 2 . . Energy Gun 8 | . . . . 1 1 5 . . . . 1 . . Energy Cannon 1 | . . . . . . . . . . . 1 . . Ballistic Gun 8 | 2 . . . . 3 2 1 . . . . . . Ballistic Cannon 4 | . 1 . . 1 . . 1 . . 1 . . . Launcher . | . . . . . . . . . . . . . . Special Weapon . | . . . . . . . . . . . . . . Impact Weapon . | . . . . . . . . . . . . . . Slashing Weapon . | . . . . . . . . . . . . . . Piercing Weapon . | . . . . . . . . . . . . . . Special Melee Weapon . | . . . . . . . . . . . . . . Unidentified Prototypes 1 | . . . . . . . . . . . 1 . . Parts Lost 39 | . . 2 . 4 1 12 2 1 . 13 3 . 1 Power 6 | . . . . . . 1 . 1 . 2 1 . 1 Propulsion 12 | . . 1 . 1 . 4 . . . 5 1 . . Utility 13 | . . 1 . 1 . 4 1 . . 5 1 . . Weapon 8 | . . . . 2 1 3 1 . . 1 . . . Highest Loss Streak 7 | . . 1 . 3 1 4 1 1 . 7 3 . 1 To Critical Strikes . | . . . . . . . . . . . . . . Average Slot Usage (%) 92 | . 99 92 100 97 79 97 98 91 86 63 80 84 81 Engine 8 | . 14 14 14 14 8 6 7 6 6 4 5 5 2 Treads 7 | . 14 12 . 13 10 10 . . . . . . . Leg 9 | . . . . . . 11 30 30 26 8 . . . Wheel 7 | . 14 14 28 14 14 6 . . . . . . . Hover 3 | . . . . . . . . . . 9 28 31 31 Device 22 | . . 7 14 13 12 32 28 23 20 18 16 15 15 Storage 8 | . 14 14 14 14 15 7 7 7 6 6 5 5 5 Processor 1 | . . . . . . . . . . 1 9 15 15 Protection 3 | . 13 . . . 1 3 7 7 6 2 . . . Energy Gun 6 | . . . . 11 4 10 7 7 6 2 2 5 5 Ballistic Gun 5 | . 15 14 14 . 10 3 6 . . . . . . Ballistic Cannon 4 | . 12 14 14 14 . . . 7 6 7 3 . . Naked Turns . | . . . . . . . . . . . . . . Heaviest Build 70 | 13 33 31 31 31 58 64 64 64 70 70 62 50 50 Greatest Support 76 | 10 10 20 20 20 20 66 71 66 66 76 59 50 50 Greatest Overweight (x) 14 | 1 3 3 1 3 14 4 1 . 1 12 1 . . Average Overweight (x) 1 | . 1 2 1 2 2 1 . . . 1 . . . Largest Inventory Capacity 15 | 8 15 15 15 15 15 15 15 15 15 15 15 15 15 Average Capacity 14 | 6 9 15 15 15 15 15 15 15 15 15 15 15 15 Most Carried 15 | 7 13 15 15 15 15 15 15 15 15 15 15 15 15 Average Carried 13 | 5 9 14 14 14 13 14 14 14 14 13 13 15 15 Final Capacity 15 | 8 15 15 15 15 15 15 15 15 15 15 15 15 15 Final Carried 15 | 6 13 14 15 14 15 15 15 15 15 12 15 15 15 Class Distribution -------------------- 37% | Mutant 29% | Infiltrator-Mutant 21% | Scavenger-Mutant 4% | Skirmisher 4% | Derelict-Mutant Dominant Class ---------------- Mutant | -10/Materials Mutant | -10/Mines Mutant | -10/Exiles Skirmisher | -9/Mines Mutant | -8/Materials Infiltrator-Mutant | -7/Factory Scavenger-Mutant | -7/Lower Caves Derelict-Mutant | -7/Lower Caves Derelict-Skirmisher | -6/Factory Mutant | -6/DSF Mutant | -5/Factory Mutant | -4/Factory Mutant | -4/DSF Resources | -11 -10 -10 -10 -9 -8 -7 -7 -7 -6 -6 -5 -4 -4 ----------- Run | Jun Mat Min Exi Min Mat Fac Low Low Fac DSF Fac Fac DSF Matter Collected 2343 | 260 271 64 17 136 143 674 231 43 . 306 198 . . Remotely . | . . . . . . . . . . . . . . Salvage Created 2817 | . 601 128 . 229 244 1025 249 21 . 258 62 . . Parts 139 | . 28 9 . 18 16 51 10 . . 4 3 . . Haulers Intercepted 2 | . 1 . . . . 1 . . . . . . . Recyclers Shooed 4 | . 2 . . . . 2 . . . . . . . Parts Field Recycled . | . . . . . . . . . . . . . . Retrieved Matter . | . . . . . . . . . . . . . . Parts Self-Destructed 12 | . . . . . . . 12 . . . . . . Prevented . | . . . . . . . . . . . . . . Kills | -11 -10 -10 -10 -9 -8 -7 -7 -7 -6 -6 -5 -4 -4 ------- Run | Jun Mat Min Exi Min Mat Fac Low Low Fac DSF Fac Fac DSF Combat Hostiles Destroyed 61 | . 12 3 . 7 6 16 5 1 . 9 2 . . Guns 38 | . 7 3 . 4 5 14 5 . . . . . . Cannons 21 | . 5 . . 3 1 . . 1 . 9 2 . . Classes Destroyed 13 | . 4 2 . . 2 4 . . . 1 . . . Worker 4 | . . . . . 1 3 . . . . . . . Builder 3 | . . . . . . 3 . . . . . . . Tunneler 3 | . . 1 . . 1 1 . . . . . . . Hauler 2 | . 1 . . . . 1 . . . . . . . Recycler 4 | . 1 . . 1 . 2 . . . . . . . Watcher 4 | . 1 . . . . 3 . . . . . . . Swarmer 12 | . . 1 . 3 3 5 . . . . . . . Grunt 32 | . 12 2 . 4 2 2 3 . . 6 1 . . Duelist 4 | . . . . . . 1 1 . . 2 . . . Sentry 7 | . . . . . 1 4 1 . . . 1 . . Hunter 2 | . . . . . . 1 . 1 . . . . . Programmer 3 | . . . . . . 3 . . . . . . . Heavy 1 | . . . . . . . . . . 1 . . . Best Kill Streak 4 | . 3 2 . 3 4 3 3 1 . 3 1 . . Combat Bots Only 3 | . 3 2 . 3 3 3 3 1 . 3 1 . . Max Kills in Single Turn 2 | . 2 1 . 1 1 2 1 1 . 1 1 . . Gunslinging . | . . . . . . . . . . . . . . Exploded . | . . . . . . . . . . . . . . Melee . | . . . . . . . . . . . . . . Uniques/NPCs Destroyed . | . . . . . . . . . . . . . . Combat | -11 -10 -10 -10 -9 -8 -7 -7 -7 -6 -6 -5 -4 -4 -------- Run | Jun Mat Min Exi Min Mat Fac Low Low Fac DSF Fac Fac DSF Damage Taken 6402 | . 358 310 . 377 322 2222 373 182 . 1774 404 . 80 Core 900 | . 69 118 . 43 59 261 45 23 . 170 39 . 73 Absorbed by Shields 161 | . . . . . . 117 . . . . 44 . . Core Remaining (%) 71 | 100 . . . 8 89 . . 53 . 80 96 . . Volleys Fired 288 | . 35 8 . 22 27 99 14 5 . 54 24 . . Largest 2 | . 2 2 . 2 2 2 2 2 . 2 2 . . Hottest 140 | . 55 55 . 85 85 126 97 117 . 117 140 . . Shots Fired 497 | . 70 16 . 40 47 172 28 10 . 77 37 . . Gun 333 | . 43 8 . 18 43 172 28 5 . 15 1 . . Cannon 164 | . 27 8 . 22 4 . . 5 . 62 36 . . Launcher . | . . . . . . . . . . . . . . Special . | . . . . . . . . . . . . . . Kinetic 279 | . 70 16 . 28 35 31 14 5 . 62 18 . . Thermal 218 | . . . . 12 12 141 14 5 . 15 19 . . Explosive . | . . . . . . . . . . . . . . Electromagnetic . | . . . . . . . . . . . . . . Robot Hit Streak 15 | . 12 3 . 9 7 15 6 11 . 13 13 . . Robot Miss Streak 7 | . 5 2 . 2 4 3 7 . . 3 4 . . Penetration Max 1 | . . . . . . 1 . . . . . . . Secondary Targets 1 | . . . . . . 1 . . . . . . . Max Gunslinging Chain 1 | . . . . . . 1 . . . . . . . Shots Hit Robots 333 | . 43 8 . 26 26 119 23 10 . 49 29 . . Core Hits 148 | . 23 5 . 11 15 50 18 2 . 17 7 . . Critical Kills 2 | . . 1 . . . . 1 . . . . . . Critical Parts Destroyed 1 | . . . . . . 1 . . . . . . . Critical Strikes 16 | . 2 1 . . 2 6 2 . . 3 . . . Burn 8 | . . . . . 2 5 1 . . . . . . Destroy 3 | . . 1 . . . 1 1 . . . . . . Blast 5 | . 2 . . . . . . . . 3 . . . Melee Attacks . | . . . . . . . . . . . . . . Impact . | . . . . . . . . . . . . . . Slashing . | . . . . . . . . . . . . . . Piercing . | . . . . . . . . . . . . . . Sneak Attacks . | . . . . . . . . . . . . . . Combat Hostiles . | . . . . . . . . . . . . . . Follow-up Attacks . | . . . . . . . . . . . . . . Damage Inflicted 6853 | . 664 113 . 431 375 2379 433 198 . 1414 846 . . Guns 4001 | . 396 76 . 180 357 2277 433 95 . 164 23 . . Cannons 2740 | . 268 37 . 251 18 . . 103 . 1250 813 . . Explosions 102 | . . . . . . 102 . . . . . . . Melee . | . . . . . . . . . . . . . . Ramming 10 | . . . . . . . . . . . 10 . . Kinetic 3788 | . 664 113 . 323 271 454 203 103 . 1250 407 . . Thermal 3055 | . . . . 108 104 1925 230 95 . 164 429 . . Explosive . | . . . . . . . . . . . . . . Electromagnetic . | . . . . . . . . . . . . . . Impact . | . . . . . . . . . . . . . . Slashing . | . . . . . . . . . . . . . . Piercing . | . . . . . . . . . . . . . . Highest Corruption 6 | . . . . . . 4 6 6 . . 5 . . Average Corruption 4 | . . . . . . 3 5 6 . . 5 . . Corruption Purged . | . . . . . . . . . . . . . . Corruption Blocked . | . . . . . . . . . . . . . . Effects 58 | . . . . . . 30 19 6 . . 3 . . Message Errors 10 | . . . . . . 6 1 1 . . 2 . . Matter Fused 19 | . . . . . . 8 8 2 . . 1 . . Heat Flow Errors 7 | . . . . . . 3 3 1 . . . . . Energy Discharges 7 | . . . . . . 4 3 . . . . . . Parts Fused 1 | . . . . . . 1 . . . . . . . Data Loss (minor) 7 | . . . . . . 5 2 . . . . . . Data Loss (major) 2 | . . . . . . 1 1 . . . . . . Misfires 1 | . . . . . . 1 . . . . . . . Alerts 3 | . . . . . . . 1 2 . . . . . Weapon Failures 1 | . . . . . . 1 . . . . . . . Overload Shots . | . . . . . . . . . . . . . . Overflow Damage 131 | . . . . . . 105 . . . 26 . . . Projectiles 26 | . . . . . . . . . . 26 . . . Explosions 105 | . . . . . . 105 . . . . . . . Melee . | . . . . . . . . . . . . . . Knockbacks 21 | . 4 . . 3 . . . 1 . 13 . . . Impact . | . . . . . . . . . . . . . . Kinetic 21 | . 4 . . 3 . . . 1 . 13 . . . Secondary . | . . . . . . . . . . . . . . Self-Inflicted Damage 430 | . . . . . . 425 . . . . 5 . . Shots 5 | . . . . . . 5 . . . . . . . Rammed 1 | . . . . . . . . . . . 1 . . Targets Rammed 1 | . . . . . . . . . . . 1 . . Kicked . | . . . . . . . . . . . . . . Crushed . | . . . . . . . . . . . . . . Highest Temperature 257 | . 87 28 . 120 6 257 245 214 . 9 81 . . Average Temperature 45 | . 22 20 . 49 6 42 105 82 . 4 46 . . Received Heat Transfer 1463 | . 201 39 . 171 99 287 138 . . 486 42 . . Effects 3 | . . . . . . 3 . . . . . . . Interference 3 | . . . . . . 3 . . . . . . . Siege Activations . | . . . . . . . . . . . . . . Robots Corrupted . | . . . . . . . . . . . . . . Combat Hostiles . | . . . . . . . . . . . . . . Parts Fried . | . . . . . . . . . . . . . . Impact Corruptions . | . . . . . . . . . . . . . . Robots Melted 2 | . . . . . . 2 . . . . . . . Combat Hostiles 2 | . . . . . . 2 . . . . . . . Parts Melted 6 | . . . . . 1 5 . . . . . . . Heat Transferred 6625 | . . . . 296 444 4244 518 185 . 333 605 . . Parts Sabotaged . | . . . . . . . . . . . . . . Parts Stolen . | . . . . . . . . . . . . . . Parts Stripped . | . . . . . . . . . . . . . . Power Chain Reactions . | . . . . . . . . . . . . . . Missiles Intercepted . | . . . . . . . . . . . . . . Alert | -11 -10 -10 -10 -9 -8 -7 -7 -7 -6 -6 -5 -4 -4 ------- Run | Jun Mat Min Exi Min Mat Fac Low Low Fac DSF Fac Fac DSF Peak Influence 318 | . 153 174 . 150 260 318 . . 57 120 162 65 45 Initial 65 | . . 40 . . 58 27 . . 57 39 63 65 45 Average 88 | . 54 123 . 94 124 93 . . 57 64 81 65 41 Maximum Alert Level 1 | . . . . . 1 1 . . . . . . . Low Security (%) 96 | 100 100 100 . 100 77 95 . . 100 100 100 100 100 Level 1 3 | . . . . . 22 4 . . . . . . . Level 2 . | . . . . . . . . . . . . . . Level 3 . | . . . . . . . . . . . . . . Level 4 . | . . . . . . . . . . . . . . Level 5 . | . . . . . . . . . . . . . . High Security . | . . . . . . . . . . . . . . Max Security . | . . . . . . . . . . . . . . Sterilizations 1 | . . . . . . . . . . 1 . . . Squads Dispatched 12 | . 2 . . . 2 4 . . . 1 2 . 1 Investigation 4 | . 2 . . . 1 . . . . . 1 . . Extermination 3 | . . . . . . 3 . . . . . . . Reinforcement 5 | . . . . . 1 1 . . . 1 1 . 1 Assault . | . . . . . . . . . . . . . . Garrison . | . . . . . . . . . . . . . . Intercept . | . . . . . . . . . . . . . . Searches Triggered . | . . . . . . . . . . . . . . Construction Impeded . | . . . . . . . . . . . . . . Haulers Reinforced 1 | . . . . . . 1 . . . . . . . Active Scanning Responses . | . . . . . . . . . . . . . . Cargo Convoy Interrupts . | . . . . . . . . . . . . . . Stealth | -11 -10 -10 -10 -9 -8 -7 -7 -7 -6 -6 -5 -4 -4 --------- Run | Jun Mat Min Exi Min Mat Fac Low Low Fac DSF Fac Fac DSF Distress Signals 6 | . 2 . . . 1 2 . . . . 1 . . Communications Jammed 44 | . . . . . 36 8 . . . . . . . Distress Signals 44 | . . . . . 36 8 . . . . . . . Times Spotted 124 | . 16 18 . 11 13 33 7 1 . 9 12 . 4 Peak Tracking Total 14 | . 3 14 . 4 4 4 3 1 . 3 4 . 4 Tactical Retreats 8 | . . . . 1 . 3 . . . . 4 . . Traps | -11 -10 -10 -10 -9 -8 -7 -7 -7 -6 -6 -5 -4 -4 ------- Run | Jun Mat Min Exi Min Mat Fac Low Low Fac DSF Fac Fac DSF Traps Triggered 14 | . 2 . . . 3 6 1 . . . 2 . . Indirectly . | . . . . . . . . . . . . . . Trap Hack Attempts . | . . . . . . . . . . . . . . Triggered . | . . . . . . . . . . . . . . Disarmed . | . . . . . . . . . . . . . . Reprogrammed . | . . . . . . . . . . . . . . Reused . | . . . . . . . . . . . . . . Traps Extracted . | . . . . . . . . . . . . . . Installed . | . . . . . . . . . . . . . . Triggered . | . . . . . . . . . . . . . . Machines | -11 -10 -10 -10 -9 -8 -7 -7 -7 -6 -6 -5 -4 -4 ---------- Run | Jun Mat Min Exi Min Mat Fac Low Low Fac DSF Fac Fac DSF Machines Disabled 11 | . . 1 . . 1 8 . . . . 1 . . Max in Single Turn 8 | . . . . . 1 8 . . . . 1 . . Machines Repaired . | . . . . . . . . . . . . . . Machines Sabotaged . | . . . . . . . . . . . . . . Overloaded Fab Kills . | . . . . . . . . . . . . . . Hacking | -11 -10 -10 -10 -9 -8 -7 -7 -7 -6 -6 -5 -4 -4 --------- Run | Jun Mat Min Exi Min Mat Fac Low Low Fac DSF Fac Fac DSF Machines Accessed 16 | . 6 1 1 . 2 2 1 1 1 . . 1 . Terminals 13 | . 6 1 . . 2 2 . . 1 . . 1 . Fabricators . | . . . . . . . . . . . . . . Repair Stations . | . . . . . . . . . . . . . . Recycling Units . | . . . . . . . . . . . . . . Scanalyzers . | . . . . . . . . . . . . . . Garrison Access . | . . . . . . . . . . . . . . Total Hacks 43 | . 23 2 1 . 7 4 1 1 2 . . 2 . Successful 23 | . 13 . 1 . 2 3 1 1 1 . . 1 . Failed 20 | . 10 2 . . 5 1 . . 1 . . 1 . Catastrophic 2 | . . . . . 2 . . . . . . . . Database Lockouts . | . . . . . . . . . . . . . . Manual 28 | . 19 2 1 . 3 3 . . . . . . . Terminals 40 | . 23 2 . . 7 4 . . 2 . . 2 . Fabricators . | . . . . . . . . . . . . . . Repair Stations . | . . . . . . . . . . . . . . Recycling Units . | . . . . . . . . . . . . . . Scanalyzers . | . . . . . . . . . . . . . . Garrison Access . | . . . . . . . . . . . . . . Terminal Hacks 19 | . 9 . 1 . 2 3 1 1 1 . . 1 . Robot Analysis 3 | . 3 . . . . . . . . . . . . Prototype ID Bank 2 | . 2 . . . . . . . . . . . . Open Door 2 | . . . . . . . 1 1 . . . . . Open DSF 2 | . . . . . . . . . 1 . . 1 . Branch Access Points 2 | . 1 . . . . 1 . . . . . . . Unreport Threat 4 | . 2 . . . 1 1 . . . . . . . Locate Traps 3 | . 1 . . . 1 1 . . . . . . . EX-Prototype ID Bank 1 | . . . 1 . . . . . . . . . . Fabricator Hacks . | . . . . . . . . . . . . . . Repair Station Hacks . | . . . . . . . . . . . . . . Recycling Unit Hacks . | . . . . . . . . . . . . . . Scanalyzer . | . . . . . . . . . . . . . . Garrison Access Hacks . | . . . . . . . . . . . . . . Unauthorized Hacks 4 | . 4 . . . . . . . . . . . . Terminals 4 | . 4 . . . . . . . . . . . . Botnet 4 | . 4 . . . . . . . . . . . . Fabricators . | . . . . . . . . . . . . . . Repair Stations . | . . . . . . . . . . . . . . Recycling Units . | . . . . . . . . . . . . . . Scanalyzers . | . . . . . . . . . . . . . . Garrison Access . | . . . . . . . . . . . . . . Data Cores Recovered . | . . . . . . . . . . . . . . Used . | . . . . . . . . . . . . . . Hacking Detections 10 | . 6 1 . . 2 1 . . . . . . . Full Trace Events 1 | . . . . . 1 . . . . . . . . Feedback Events . | . . . . . . . . . . . . . . Feedback Blocked . | . . . . . . . . . . . . . . Robot Schematics Acquired . | . . . . . . . . . . . . . . Robots Built . | . . . . . . . . . . . . . . Authchips . | . . . . . . . . . . . . . . Time . | . . . . . . . . . . . . . . Total Robot Build Rating . | . . . . . . . . . . . . . . Part Schematics Acquired . | . . . . . . . . . . . . . . Parts Built . | . . . . . . . . . . . . . . Authchips . | . . . . . . . . . . . . . . Time . | . . . . . . . . . . . . . . Total Part Build Rating . | . . . . . . . . . . . . . . Parts Repaired . | . . . . . . . . . . . . . . Time . | . . . . . . . . . . . . . . Parts Recycled . | . . . . . . . . . . . . . . Recycled Matter . | . . . . . . . . . . . . . . Retrieved Matter . | . . . . . . . . . . . . . . Retrieved Components . | . . . . . . . . . . . . . . Parts Scanalyzed . | . . . . . . . . . . . . . . Part Schematics Acquired . | . . . . . . . . . . . . . . Parts Damaged . | . . . . . . . . . . . . . . Bothacking | -11 -10 -10 -10 -9 -8 -7 -7 -7 -6 -6 -5 -4 -4 ------------ Run | Jun Mat Min Exi Min Mat Fac Low Low Fac DSF Fac Fac DSF Used RIF Installer . | . . . . . . . . . . . . . . Robots Hacked . | . . . . . . . . . . . . . . Non-combat . | . . . . . . . . . . . . . . Combat . | . . . . . . . . . . . . . . Robot Hacks Applied . | . . . . . . . . . . . . . . Relay Couplers Released . | . . . . . . . . . . . . . . Fabnet Peak Effective % . | . . . . . . . . . . . . . . Robots Rewired . | . . . . . . . . . . . . . . Allies Hacked . | . . . . . . . . . . . . . . Hacks Repelled . | . . . . . . . . . . . . . . Allies | -11 -10 -10 -10 -9 -8 -7 -7 -7 -6 -6 -5 -4 -4 -------- Run | Jun Mat Min Exi Min Mat Fac Low Low Fac DSF Fac Fac DSF Total Allies 1 | . . 1 . . . . . . . . . . . Largest Group 1 | . . 1 . . . . . . . . . . . Highest-Rated Group 31 | . . 31 . . . . . . . . . . . Highest-Rated Ally 31 | . . 31 . . . . . . . . . . . Total Orders . | . . . . . . . . . . . . . . Ally Attacks 8 | . . 8 . . . . . . . . . . . Total Damage 83 | . . 83 . . . . . . . . . . . Kills 2 | . . 2 . . . . . . . . . . . Allies Corrupted . | . . . . . . . . . . . . . . Allies Melted . | . . . . . . . . . . . . . . Intel | -11 -10 -10 -10 -9 -8 -7 -7 -7 -6 -6 -5 -4 -4 ------- Run | Jun Mat Min Exi Min Mat Fac Low Low Fac DSF Fac Fac DSF Robot Analysis Total 3 | . 3 . . . . . . . . . . . . Derelict Logs Recovered 4 | . . 1 . . . . 2 1 . . . . . Drone Launches . | . . . . . . . . . . . . . . Drone Recoveries . | . . . . . . . . . . . . . . Exploration | -11 -10 -10 -10 -9 -8 -7 -7 -7 -6 -6 -5 -4 -4 ------------- Run | Jun Mat Min Exi Min Mat Fac Low Low Fac DSF Fac Fac DSF Turns Passed 6924 | 47 644 412 231 332 416 2771 678 198 119 332 699 23 22 Spaces Moved 4725 | 44 464 319 243 184 239 1635 506 139 64 103 656 67 62 Core 23 | 12 . . . . 1 . . . . 10 . . . Treads 15 | . . . . 2 10 3 . . . . . . . Legs 1323 | . . . . . . 581 506 139 64 33 . . . Wheels 2519 | 32 464 319 243 182 228 1051 . . . . . . . Hover 845 | . . . . . . . . . . 60 656 67 62 Flight . | . . . . . . . . . . . . . . Fastest Speed 24 | 50 95 95 95 110 110 110 120 120 120 24 28 34 34 Average Speed 117 | 73 101 118 95 124 130 142 120 120 184 172 69 34 34 Slowest Speed 750 | 95 125 125 95 240 750 320 190 120 190 650 108 34 34 Overloaded Moves . | . . . . . . . . . . . . . . Propulsion Burnouts . | . . . . . . . . . . . . . . Robots Hopped . | . . . . . . . . . . . . . . Cave-ins Triggered . | . . . . . . . . . . . . . . Exploration Rate (%) 39 | 3 80 63 59 28 19 44 66 16 2 91 25 2 61 Regions Visited 13 Branch Regions 5 Pre-discovered Areas . | . . . . . . . . . . . . . . Known Exits Taken 6 | . 1 . . . 1 1 . . 1 . 1 1 . Unknown Exits Taken 6 | 1 . 1 1 1 . . 1 1 . . . . . Scrap Searched 6 | . . 1 . . . . 3 2 . . . . . Spaces Dug . | . . . . . . . . . . . . . . Terrain Destroyed 37 | . . . . . . 35 . . . . 2 . . Melee . | . . . . . . . . . . . . . . Projectile 2 | . . . . . . . . . . . 2 . . AOE 35 | . . . . . . 35 . . . . . . . Terrain Rammed . | . . . . . . . . . . . . . . Walls Destroyed . | . . . . . . . . . . . . . . Machines Disabled . | . . . . . . . . . . . . . . Actions | -11 -10 -10 -10 -9 -8 -7 -7 -7 -6 -6 -5 -4 -4 --------- Run | Jun Mat Min Exi Min Mat Fac Low Low Fac DSF Fac Fac DSF Total 5592 | 56 569 337 243 247 299 1908 548 160 65 176 856 66 62 Wait 361 | . 51 7 . 35 3 86 . 15 . 4 160 . . Move 4712 | 43 463 318 242 183 238 1634 505 138 63 102 655 66 62 Hop . | . . . . . . . . . . . . . . Pick Up 60 | 7 9 1 1 2 6 19 6 1 1 1 6 . . Fast Attach 63 | 5 2 1 . . 12 24 5 . . 9 5 . . Attach 32 | 1 . 1 . 4 2 12 3 1 1 5 2 . . Detach 1 | . . . . . . 1 . . . . . . . Swap 20 | . 3 1 . 1 3 7 3 . . 1 1 . . Drop 54 | . 6 . . . 8 26 12 . . . 2 . . Fire 288 | . 35 8 . 22 27 99 14 5 . 54 24 . . Melee . | . . . . . . . . . . . . . . Ram 1 | . . . . . . . . . . . 1 . . Kick . | . . . . . . . . . . . . . . Crush . | . . . . . . . . . . . . . . Escape Stasis . | . . . . . . . . . . . . . . Rewire . | . . . . . . . . . . . . . . Trap . | . . . . . . . . . . . . . . Miscellaneous . | . . . . . . . . . . . . . . Route ------- -11/Junkyard -10/Materials (discovered 4 exits: [*Mat x2] / *Min x2) -10/Mines (discovered 3 exits: [*Mat x2] / *Exi) -10/Exiles -9/Mines -8/Materials -7/Factory (discovered 3 exits: Sto / *Low x2) -7/Lower Caves -7/Lower Caves -6/Factory (discovered 3 exits: Low / Ext / DSF) -6/DSF -5/Factory (discovered 2 exits: *Fac / [*Upp]) -4/Factory -4/DSF (discovered 1 exit: [*Res]) History --------- Turn | Location | Event 23 | -11/Junkyard | Discovered new exit (range 15) 48 | -11/Junkyard | Entered Materials 197 | -10/Materials | Identified exit to Mines 215 | -10/Materials | Discovered new exit (range 14) 317 | -10/Materials | Build established: Mutant 496 | -10/Materials | Discovered new exit (range 14) 692 | -10/Materials | Entered Mines 741 | -10/Mines | Received a Mining Laser from a helpful Derelict 774 | -10/Mines | Discovered new exit (range 14) 782 | -10/Mines | Deemed a non-threat by the Exiles lab entrance 783 | -10/Mines | Discovered new exit (range 5) 860 | -10/Mines | Learned location of 1 exit from Materials 870 | -10/Mines | Discovered new exit (range 6) 1061 | -10/Mines | Assembled infested the area 1071 | -10/Mines | Core integrity fell below 50% 1104 | -10/Mines | Entered Exiles 1128 | -10/Exiles | Met 8R-AWN 1143 | -10/Exiles | Met EX-HEX 1169 | -10/Exiles | Met EX-BIN 1181 | -10/Exiles | Aligned with FarCom system 1181 | -10/Exiles | Given EX-Vault access code 1203 | -10/Exiles | Opened EX-Vault 1210 | -10/Exiles | Found Latent Energy Streamer 1231 | -10/Exiles | Warned to stay clear of 0b10 Research branches 1326 | -10/Exiles | Discovered new exit (range 12) 1335 | -10/Exiles | Left Exiles lab with Latent Energy Streamer 1335 | -10/Exiles | Entered Mines 1338 | -9/Mines | Core integrity fell below 20% 1392 | -9/Mines | Lost 3 parts (1n2w) 1655 | -9/Mines | Discovered new exit (range 11) 1667 | -9/Mines | Entered Materials 1667 | -8/Materials | Evolved 4 slots: Propulsion x2, Utility x2 1668 | -8/Materials | Identified exit to Factory 2083 | -8/Materials | Entered Factory 2083 | -7/Factory | Evolved 2 slots: Utility x2 2561 | -7/Factory | Build established: Infiltrator-Mutant 2648 | -7/Factory | Lost 3 parts (1p2w) 2861 | -7/Factory | Build established: Scavenger-Mutant 3309 | -7/Factory | Identified exit to Storage 3309 | -7/Factory | Identified exit to Lower Caves 3428 | -7/Factory | Lost 4 parts (3n1u) 3585 | -7/Factory | Build established: Infiltrator-Mutant 4854 | -7/Factory | Entered Lower Caves 4982 | -7/Lower Caves | Encountered a Warlord checkpoint 5153 | -7/Lower Caves | Learned location of 1 exit from Factory 5154 | -7/Lower Caves | Learned Factory terminal intel 5398 | -7/Lower Caves | Build established: Scavenger-Mutant 5416 | -7/Lower Caves | Attracted the attention of an 0b10 checkpoint 5513 | -7/Lower Caves | Discovered new exit (range 15) 5531 | -7/Lower Caves | Ambushed by wild Derelicts 5532 | -7/Lower Caves | Entered another Lower Caves area 5647 | -7/Lower Caves | Discovered new exit (range 12) 5659 | -7/Lower Caves | Encountered a Warlord checkpoint 5730 | -7/Lower Caves | Entered Factory 5730 | -6/Factory | Evolved 2 slots: Power x1, Propulsion x1 5731 | -6/Factory | Identified exit to Extension 5732 | -6/Factory | Identified exit to Lower Caves 5733 | -6/Factory | Loaded intel: 27 terminal locations 5849 | -6/Factory | Identified exit to DSF 5849 | -6/Factory | Entered DSF 5884 | -6/DSF | Additional patrols routed to DSF 5922 | -6/DSF | Lost 4 parts (2p2n) 6041 | -6/DSF | Lost 7 parts (3n3u1w) 6167 | -6/DSF | Discovered new exit (range 15) 6175 | -6/DSF | Sterilization system engaged 6181 | -6/DSF | Entered Factory 6181 | -5/Factory | Evolved 2 slots: Propulsion x1, Utility x1 6213 | -5/Factory | Discovered new exit (range 22) 6320 | -5/Factory | Lost 3 parts (1p1n1u) 6540 | -5/Factory | Build established: Mutant 6879 | -5/Factory | Discovered new exit (range 4) 6880 | -5/Factory | Identified exit to Factory 6880 | -5/Factory | Entered another Factory area 6880 | -4/Factory | Evolved 2 slots: Utility x2 6885 | -4/Factory | Identified exit to DSF 6903 | -4/Factory | Entered DSF 6923 | -4/DSF | Additional patrols routed to DSF 6924 | -4/DSF | Discovered new exit (range 21) 6925 | -4/DSF | Self-destructed Last Messages --------------- LOCATION=FACTORY GOAL=ESCAPE 06880_ Receiving FarCom transmissions... 06885_ Connecting with DSF Access... >>Open(DSF) DSF access unlocked. 06885_ EXIT=UNLOCKED: DSF LOCATION=DSF AMBIENT_HEAT=-10 GOAL=ESCAPE 06903_ Receiving FarCom transmissions... 06910_ ALERT: Suspicious intruders detected, dispatching Cutter reinforcements to area. 06918_ Penetrated by Slug. 06918_ Lgt. Angular Momentum Engine destroyed. 06921_ Knocked back. 06921_ C-35 Carver knocked back. 06923_ Hostiles detected in DSF, routing additional patrols. 06924_ EXIT=FOUND 06925_ X-82 Rainmaker springs to life. Map ----- +----------------------------------------------------+ | | | | | | | | | | | | | | | | | | | | | | | | | | | | | | | ???????????????????????????????????????????? | | ???????????????????????????????????????????? | | ???????????????????????????????????????????? | | ?????????##????????????????????????????????? | | ?????????""????????????????????????????????? | | ?????????#"#???????????????????????????????? | | ??????####"##?????????#######??????????????? | | ??????#"""""#########==!!! #??????????????? | | ??????#"""""## # #==!!! # #[[##??????? | | ???#"##"" <"??? | | ???#""""" xc c @ "??? | | ?????##"" ##==#===### ###]]]#??????????? | | ??????### ###==#===#??????????????????????? | | ???????## ##########??????????????????????? | | ???????# #?????????????????????????????? | | ???????# #?????????????????????????????? | | ???????## # #?Y???????????????????????????? | | ???????#= ==#?????????????????????????????? | | ???????#= == ?????????????????????????????? | | ???????#= ==##????????????????????????????? | | ??????### ######???#??????????????????????? | | ??????#! #? #?!!#???? #????????????????? | | ?????##!! ##c #!!!## #???????????????? | | ?????#"!!% ??????????????? | | ?????##!! H ??????????????? | | ??????#!! ??????????????? | | ??????# ## # ## ##??????????????? | | ??????# #? #?? #??? ##???????????????? | | ??????### ######??????? ###??????????????? | | ???????# ]]#?????????? ]]???????????????? | | ???????# ]]#????????? ]]???????????????? | | ???????# ]]#????????? ]????????????????? | | ???????## ###????????? ###??????????????? | | ???????#] ]]#????????? #??????????????? | | ???????#] ]]#????????? #??????????????? | +----------------------------------------------------+ Best States ------------- Heat Dissipation 59 Energy Generation 31 Energy Capacity 290 Matter Stores 300 Matter Capacity 300 Sight Range 22 Robot Scan Range 15 Terrain Scan Range 16 Terrain Scan Density 10 ECM Strength 2 Jamming Range 12 Armor Coverage 600 Weapon Cycling 15 Evasion (%) 60 Targeting Accuracy 8 Recoil Reduction 1 Energy Filtering 30 Item Schematics ----------------- None Robot Schematics ------------------ None Fabricated ------------ Nothing Alien Tech Used ----------------- None Achievements -------------- None Challenges ------------ None Game ------ Seed ArchitectMappingAutocannon Manual? 0 Play Time 01:03:39 Cumulative 74.4 hours Start 2023.06.07 @ 22:51:00 End 2023.06.07 @ 23:58:16 Sessions 3 Manual Loads 0 Difficulty Rogue Special Mode None Game No. 65 Rogue 65 Adventurer 0 Explorer 0 Win Type - Total 0 Types 0/0/0/0/0/0/0/0/0 Lore% 34 Gallery% 43 Achievement% 33 Wizard Run 0 Options --------- ASCII 0 Keyboard 0 Movement Numpad Keybinds 0 Fullscreen 1 Font 18/SmallcapsGlow Map View 76x50 Tactical HUD 1 Map Filters NONE Filters NONE Steam 1 RUN: 4dfdfde3-468f-4764-9d66-de4ab30568fa